fUST/lending_fUST_20240830
["ID","MTS","AMOUNT","RATE_DAILY","PERIOD"]
[336547398,1724949041444,-500.0,0.00019178,2]
[336547401,1724949041454,-500.0,0.00019178,2]
[336547402,1724949041464,-593.3,0.00019178,2]
[336547404,1724949041473,-500.0,0.00019178,2]
[336547406,1724949041483,-162.378984,0.00019178,2]
[336547409,1724949041494,-798.95741061,0.00019209,2]
[336547411,1724949041504,-798.95741061,0.00019339,2]
[336547413,1724949041514,-154.521686,0.00019384,2]
[336547415,1724949041523,-2757.11306063,0.00019442,2]
[336547417,1724949041534,-1051.16,0.00019452,2]
[336547419,1724949041544,-500.0,0.00019452,2]
[336547421,1724949041555,-500.0,0.00019452,2]
[336547423,1724949041566,-500.0,0.00019452,2]
[336547425,1724949041578,-500.0,0.00019452,2]
[336547427,1724949041588,-500.0,0.00019452,2]
[336547429,1724949041598,-218.24,0.00019452,2]
[336547431,1724949041607,-500.0,0.00019452,2]
[336547433,1724949041616,-500.0,0.00019452,2]
[336547435,1724949041626,-1119.7,0.00019452,2]
[336547438,1724949041638,-1345.39,0.00019452,2]
[336547439,1724949041652,-500.0,0.00019452,2]
[336547441,1724949041661,-500.0,0.00019452,2]
[336547444,1724949041671,-500.0,0.00019452,2]
[336547446,1724949041681,-500.0,0.00019452,2]
[336547448,1724949041692,-2858.87,0.00019452,2]
[336547450,1724949041702,-1737.59,0.00019452,2]
[336547452,1724949041711,-8650.02,0.00019452,2]
[336547454,1724949041721,-500.0,0.00019452,2]
[336547455,1724949041730,-500.0,0.00019452,2]
[336547458,1724949041741,-1088.59,0.00019452,2]
[336547460,1724949041751,-1088.68,0.00019452,2]
[336547462,1724949041762,-500.0,0.00019452,2]
[336547464,1724949041772,-1552.04,0.00019452,2]
[336547466,1724949041782,-4882.3,0.00019452,2]
[336547468,1724949041791,-500.0,0.00019452,2]
[336547470,1724949041801,-500.0,0.00019452,2]
[336547472,1724949041812,-500.0,0.00019452,2]
[336547474,1724949041822,-500.0,0.00019452,2]
[336547476,1724949041833,-500.0,0.00019452,2]
[336547478,1724949041844,-500.0,0.00019452,2]
[336547480,1724949041853,-500.0,0.00019452,2]
[336547482,1724949041863,-1152.27,0.00019452,2]
[336547484,1724949041873,-500.0,0.00019452,2]
[336547486,1724949041882,-500.0,0.00019452,2]
[336547488,1724949041892,-500.0,0.00019452,2]
[336547490,1724949041902,-500.0,0.00019452,2]
[336547492,1724949041912,-733.18,0.00019452,2]
[336547494,1724949041922,-1150.67,0.00019452,2]
[336547497,1724949041931,-1526.53,0.00019452,2]
[336547499,1724949041941,-500.0,0.00019452,2]
[336547501,1724949041950,-500.0,0.00019452,2]
[336547503,1724949041960,-1279.98,0.00019452,2]
[336547505,1724949041969,-1929.69,0.00019452,2]
[336547507,1724949041979,-500.0,0.00019452,2]
[336547509,1724949041988,-500.0,0.00019452,2]
[336547511,1724949041998,-806.61,0.00019452,2]
[336547513,1724949042007,-500.0,0.00019452,2]
[336547515,1724949042017,-500.0,0.00019452,2]
[336547517,1724949042026,-500.0,0.00019452,2]
[336547519,1724949042036,-500.0,0.00019452,2]
[336547521,1724949042045,-500.0,0.00019452,2]
[336547522,1724949042056,-462.58647167,0.00019452,2]
[336547524,1724949042065,-500.0,0.00019452,2]
[336547526,1724949042075,-500.0,0.00019452,2]
[336547528,1724949042085,-500.0,0.00019452,2]
[336547530,1724949042095,-843.2,0.00019452,2]
[336547533,1724949042104,-500.0,0.00019452,2]
[336547535,1724949042113,-500.0,0.00019452,2]
[336547536,1724949042123,-500.0,0.00019452,2]
[336547539,1724949042132,-500.0,0.00019452,2]
[336547541,1724949042142,-552.87,0.00019452,2]
[336547542,1724949042151,-500.0,0.00019452,2]
[336547544,1724949042161,-500.0,0.00019452,2]
[336547546,1724949042170,-500.0,0.00019452,2]
[336547548,1724949042179,-500.0,0.00019452,2]
[336547550,1724949042189,-500.0,0.00019452,2]
[336547552,1724949042199,-500.0,0.00019452,2]
[336547555,1724949042209,-500.0,0.00019452,2]
[336547557,1724949042218,-2864.39,0.00019452,2]
[336547559,1724949042228,-500.0,0.00019452,2]
[336547561,1724949042237,-500.0,0.00019452,2]
[336547563,1724949042246,-551.30487318,0.00019452,2]
[336547565,1724949042256,-18843.67,0.00019452,2]
[336547567,1724949042266,-500.0,0.00019452,2]
[336547569,1724949042275,-1071.71,0.00019452,2]
[336547571,1724949042285,-2567.35,0.00019452,2]
[336547573,1724949042295,-500.0,0.00019452,2]
[336547575,1724949042306,-500.0,0.00019452,2]
[336547577,1724949042316,-500.0,0.00019452,2]
[336547579,1724949042326,-420.0,0.00019587,2]
[336547581,1724949042335,-600.0,0.00019655,2]
[336547583,1724949042345,-600.0,0.00019673,2]
[336547585,1724949042355,-600.0,0.00019673,2]
[336547587,1724949042365,-864.4346584,0.000197,2]
[336547589,1724949042374,-5514.22612126,0.00019716,2]
[336547591,1724949042383,-151.0,0.00019726,2]
[336547593,1724949042393,-1051.16,0.00019726,2]
[336547595,1724949042403,-500.0,0.00019726,2]
[336547597,1724949042413,-500.0,0.00019726,2]
[336547599,1724949042423,-617.75649372,0.00019726,2]
[336547601,1724949042432,-500.0,0.00019726,2]
[336547603,1724949042442,-500.0,0.00019726,2]
[336547605,1724949042451,-500.0,0.00019726,2]
[336547607,1724949042461,-500.0,0.00019726,2]
[336547609,1724949042470,-1119.7,0.00019726,2]
[336547611,1724949042479,-1345.39,0.00019726,2]
[336547613,1724949042489,-500.0,0.00019726,2]
[336547615,1724949042498,-500.0,0.00019726,2]
[336547617,1724949042507,-500.0,0.00019726,2]
[336547619,1724949042517,-500.0,0.00019726,2]
[336547621,1724949042526,-2858.87,0.00019726,2]
[336547623,1724949042535,-1737.59,0.00019726,2]
[336547625,1724949042545,-8650.02,0.00019726,2]
[336547627,1724949042554,-500.0,0.00019726,2]
[336547629,1724949042563,-1088.59,0.00019726,2]
[336547631,1724949042574,-1088.68,0.00019726,2]
[336547633,1724949042583,-1552.04,0.00019726,2]
[336547635,1724949042593,-4882.3,0.00019726,2]
[336547637,1724949042602,-500.0,0.00019726,2]
[336547639,1724949042611,-500.0,0.00019726,2]
[336547641,1724949042621,-585.96993275,0.00019726,2]
[336547643,1724949042630,-500.0,0.00019726,2]
[336547645,1724949042642,-500.0,0.00019726,2]
[336547647,1724949042651,-500.0,0.00019726,2]
[336547649,1724949042660,-500.0,0.00019726,2]
[336547651,1724949042669,-1152.27,0.00019726,2]
[336547653,1724949042679,-500.0,0.00019726,2]
[336547655,1724949042689,-500.0,0.00019726,2]
[336547657,1724949042698,-733.18,0.00019726,2]
[336547659,1724949042708,-1150.67,0.00019726,2]
[336547661,1724949042718,-1526.53,0.00019726,2]
[336547663,1724949042729,-500.0,0.00019726,2]
[336547666,1724949042739,-1279.98,0.00019726,2]
[336547667,1724949042748,-1929.69,0.00019726,2]
[336547669,1724949042758,-500.0,0.00019726,2]
[336547672,1724949042767,-500.0,0.00019726,2]
[336547674,1724949042778,-806.61,0.00019726,2]
[336547676,1724949042787,-312.70355636,0.00019726,2]
[336547678,1724949042795,-500.0,0.00019726,2]
[336547680,1724949042806,-500.0,0.00019726,2]
[336547682,1724949042816,-500.0,0.00019726,2]
[336547684,1724949042825,-500.0,0.00019726,2]
[336547686,1724949042834,-500.0,0.00019726,2]
[336547688,1724949042845,-843.2,0.00019726,2]
[336547690,1724949042854,-500.0,0.00019726,2]
[336547692,1724949042863,-552.87,0.00019726,2]
[336547694,1724949042873,-500.0,0.00019726,2]
[336547696,1724949042882,-500.0,0.00019726,2]
[336547698,1724949042892,-500.0,0.00019726,2]
[336547700,1724949042902,-2864.39,0.00019726,2]
[336547702,1724949042912,-18843.67,0.00019726,2]
[336547704,1724949042921,-500.0,0.00019726,2]
[336547706,1724949042931,-1071.71,0.00019726,2]
[336547708,1724949042940,-2567.35,0.00019726,2]
[336547710,1724949042950,-500.0,0.00019726,2]
[336547712,1724949042959,-500.0,0.00019726,2]
[336547714,1724949042969,-500.0,0.00019726,2]
[336547716,1724949042979,-207.8243323,0.00019726,2]
[336547718,1724949042989,-207.8243323,0.00019726,2]
[336547720,1724949042999,-207.8243323,0.00019726,2]
[336547722,1724949043008,-207.8243323,0.00019726,2]
[336547724,1724949043017,-420.0,0.00019745,2]
[336547727,1724949043027,-154.521686,0.00019857,2]
[336547729,1724949043037,-48928.38094375,0.000199,2]
[336547731,1724949043046,-11589.93077219,0.000199,15]
[336547733,1724949043059,-194.26378796,0.000199,2]
[336547736,1724949043069,-172.894012,0.000199,2]
[336547738,1724949043079,-151.0,0.000199,2]
[336547739,1724949043088,-600.0,0.00019989,2]
[336547742,1724949043097,-5514.22612126,0.0001999,2]
[336547743,1724949043107,-23633.03262479,0.0001999,2]
[336547745,1724949043116,-258.38303476,0.0002,5]
[336547747,1724949043125,-25044.80218525,0.0002,5]
[336547750,1724949043135,-1051.16,0.0002,2]
[336547752,1724949043145,-151.0,0.0002,2]
[336547754,1724949043155,-151.0,0.0002,2]
[336547756,1724949043165,-216.36664949,0.0002,2]
[336547758,1724949043175,-500.0,0.0002,2]
[336547760,1724949043185,-500.0,0.0002,2]
[336547762,1724949043194,-151.0,0.0002,2]
[336547764,1724949043205,-500.0,0.0002,2]
[336547766,1724949043214,-151.0,0.0002,2]
[336547769,1724949043223,-151.0,0.0002,2]
[336547771,1724949043232,-151.0,0.0002,2]
[336547773,1724949043241,-500.0,0.0002,2]
[336547775,1724949043251,-500.0,0.0002,2]
[336547777,1724949043260,-1119.7,0.0002,2]
[336547781,1724949043270,-1345.39,0.0002,2]
[336547785,1724949043279,-500.0,0.0002,2]
[336547789,1724949043289,-500.0,0.0002,2]
[336547794,1724949043301,-500.0,0.0002,2]
[336547798,1724949043310,-500.0,0.0002,2]
[336547801,1724949043321,-1847.27121524,0.0002,2]
[336547804,1724949043340,-1011.59878476,0.0002,2]
[336547807,1724949043349,-151.0,0.0002,2]
[336547810,1724949043358,-1737.59,0.0002,2]
[336547812,1724949043367,-8650.02,0.0002,2]
[336547814,1724949043376,-335.26470882,0.0002,2]
[336547816,1724949043387,-151.0,0.0002,2]
[336547818,1724949043399,-1088.59,0.0002,2]
[336547820,1724949043409,-1088.68,0.0002,2]
[336547822,1724949043419,-1552.04,0.0002,2]
[336547824,1724949043430,-4882.3,0.0002,2]
[336547825,1724949043441,-500.0,0.0002,2]
[336547826,1724949043451,-500.0,0.0002,2]
[336547827,1724949043462,-500.0,0.0002,2]
[336547828,1724949043474,-500.0,0.0002,2]
[336547829,1724949043484,-500.0,0.0002,2]
[336547830,1724949043494,-500.0,0.0002,2]
[336547831,1724949043504,-302.24446742,0.0002,2]
[336547832,1724949043515,-1152.27,0.0002,2]
[336547833,1724949043527,-500.0,0.0002,2]
[336547834,1724949043538,-618.00084849,0.0002,2]
[336547835,1724949043549,-151.0,0.0002,2]
[336547836,1724949043559,-733.18,0.0002,2]
[336547837,1724949043570,-1150.67,0.0002,2]
[336547838,1724949043580,-1526.53,0.0002,2]
[336547839,1724949043590,-500.0,0.0002,2]
[336547840,1724949043601,-1279.98,0.0002,2]
[336547841,1724949043612,-1929.69,0.0002,2]
[336547842,1724949043623,-154.75262482,0.0002,2]
[336547843,1724949043634,-624.92063107,0.0002,12]
[336547844,1724949043648,-16947.81374095,0.0002,4]
[336547845,1724949043657,-500.0,0.0002,2]
[336547846,1724949043666,-500.0,0.0002,2]
[336547847,1724949043676,-532.87315468,0.0002,2]
[336547850,1724949043691,-273.73684532,0.0002,2]
[336547852,1724949043702,-151.0,0.0002,2]
[336547854,1724949043712,-500.0,0.0002,2]
[336547856,1724949043726,-500.0,0.0002,2]
[336547859,1724949043737,-500.0,0.0002,2]
[336547863,1724949043749,-500.0,0.0002,2]
[336547865,1724949043761,-500.0,0.0002,2]
[336547867,1724949043772,-500.0,0.0002,2]
[336547869,1724949043783,-843.2,0.0002,2]
[336547871,1724949043793,-552.87,0.0002,2]
[336547873,1724949043803,-500.0,0.0002,2]
[336547876,1724949043815,-500.0,0.0002,2]
[336547878,1724949043825,-2864.39,0.0002,2]
[336547880,1724949043836,-302.27461649,0.0002,2]
[336547883,1724949043850,-18843.67,0.0002,2]
[336547885,1724949043859,-1071.71,0.0002,2]
[336547887,1724949043871,-2567.35,0.0002,2]
[336547889,1724949043882,-500.0,0.0002,2]
[336547891,1724949043893,-500.0,0.0002,2]
[336547893,1724949043905,-500.0,0.0002,2]
[336547895,1724949043915,-500.0,0.0002,2]
[336547898,1724949043926,-409.4593805,0.0002,2]
[336547900,1724949043937,-297.4431426,0.0002,2]
[336547902,1724949043947,-207.8243323,0.0002,2]
[336547904,1724949043958,-207.8243323,0.0002,2]
[336547906,1724949043969,-207.8243323,0.0002,2]
[336547908,1724949043980,-2500.0,0.00020151,2]
[336547910,1724949043989,-2500.0,0.0002016,2]
[336547912,1724949043999,-151.0,0.00020173,2]
[336547915,1724949044011,-151.0,0.00020173,2]
[336547917,1724949044022,-151.0,0.00020173,2]
[336547919,1724949044033,-151.0,0.00020173,2]
[336547921,1724949044044,-302.24446742,0.000202,2]
[336547923,1724949044056,-151.0,0.000202,2]
[336547925,1724949044066,-302.27461649,0.000202,2]
[336547927,1724949044076,-996.41357253,0.00020262,2]
[336547929,1724949044086,-5514.22612126,0.00020263,2]
[336547931,1724949044095,-500.40567098,0.00020273,2]
[336547933,1724949044105,-500.0,0.00020273,2]
[336547936,1724949044115,-500.0,0.00020273,2]
[336547938,1724949044125,-500.0,0.00020273,2]
[336547940,1724949044135,-190.4624371,0.00020273,2]
[336547942,1724949044145,-1051.16,0.00020273,2]
[336547954,1724949044265,-151.0,0.00020273,2]
[336547957,1724949044277,-500.0,0.00020273,2]
[336547959,1724949044287,-500.0,0.00020273,2]
[336547960,1724949044296,-500.0,0.00020273,2]
[336547963,1724949044307,-500.0,0.00020273,2]
[336547964,1724949044317,-500.0,0.00020273,2]
[336547966,1724949044326,-1119.7,0.00020273,2]
[336547969,1724949044336,-1345.39,0.00020273,2]
[336547970,1724949044346,-500.0,0.00020273,2]
[336547972,1724949044356,-500.0,0.00020273,2]
[336547974,1724949044366,-500.0,0.00020273,2]
[336547976,1724949044375,-500.0,0.00020273,2]
[336547979,1724949044386,-2858.87,0.00020273,2]
[336547980,1724949044396,-1737.59,0.00020273,2]
[336547982,1724949044406,-8650.02,0.00020273,2]
[336547984,1724949044415,-1088.59,0.00020273,2]
[336547986,1724949044424,-1088.68,0.00020273,2]
[336547988,1724949044434,-1552.04,0.00020273,2]
[336547990,1724949044444,-4882.3,0.00020273,2]
[336547992,1724949044453,-500.0,0.00020273,2]
[336547994,1724949044462,-509.22615249,0.00020273,2]
[336547996,1724949044472,-500.0,0.00020273,2]
[336547998,1724949044482,-500.0,0.00020273,2]
[336548000,1724949044492,-500.0,0.00020273,2]
[336548002,1724949044502,-500.0,0.00020273,2]
[336548004,1724949044511,-1152.27,0.00020273,2]
[336548005,1724949044521,-607.89947131,0.00020273,2]
[336548007,1724949044530,-733.18,0.00020273,2]
[336548008,1724949044540,-1150.67,0.00020273,2]
[336548009,1724949044550,-1526.53,0.00020273,2]
[336548010,1724949044559,-500.0,0.00020273,2]
[336548011,1724949044569,-1279.98,0.00020273,2]
[336548012,1724949044578,-1929.69,0.00020273,2]
[336548013,1724949044588,-500.0,0.00020273,2]
[336548014,1724949044597,-500.0,0.00020273,2]
[336548015,1724949044607,-806.61,0.00020273,2]
[336548016,1724949044619,-151.0,0.00020273,2]
[336548017,1724949044629,-500.0,0.00020273,2]
[336548018,1724949044644,-500.0,0.00020273,2]
[336548019,1724949044654,-500.0,0.00020273,2]
[336548020,1724949044664,-500.0,0.00020273,2]
[336548022,1724949044674,-500.0,0.00020273,2]
[336548024,1724949044686,-500.0,0.00020273,2]
[336548026,1724949044695,-843.2,0.00020273,2]
[336548027,1724949044705,-552.87,0.00020273,2]
[336548028,1724949044716,-500.0,0.00020273,2]
[336548029,1724949044728,-500.0,0.00020273,2]
[336548030,1724949044738,-2864.39,0.00020273,2]
[336548031,1724949044750,-18843.67,0.00020273,2]
[336548032,1724949044761,-1071.71,0.00020273,2]
[336548033,1724949044772,-2567.35,0.00020273,2]
[336548034,1724949044782,-500.0,0.00020273,2]
[336548035,1724949044792,-500.0,0.00020273,2]
[336548036,1724949044803,-500.0,0.00020273,2]
[336548037,1724949044813,-500.0,0.00020273,2]
[336548038,1724949044823,-1423.36199998,0.000203,2]
[336548040,1724949044838,-1986.59800002,0.000203,2]
[336548041,1724949044848,-153.0,0.00020301,2]
[336548042,1724949044858,-153.0,0.00020301,2]
[336548043,1724949044868,-153.0,0.00020301,2]
[336548044,1724949044878,-153.0,0.00020301,2]
[336548045,1724949044888,-10944.91587032,0.00020377,2]
[336548046,1724949044898,-151.0,0.00020377,2]
[336548047,1724949044909,-278.257756,0.00020377,2]
[336548048,1724949044920,-151.0,0.00020377,2]
[336548049,1724949044929,-151.0,0.00020377,2]
[336548050,1724949044938,-151.0,0.00020377,2]
[336548051,1724949044948,-150.112233,0.000204,5]
[336548052,1724949044958,-302.24446742,0.000204,2]
[336548053,1724949044968,-302.27461649,0.000204,2]
[336548054,1724949044980,-500.0,0.00020415,2]
[336548055,1724949044991,-1169.10954673,0.00020447,2]
[336548056,1724949045001,-600.0,0.00020486,2]
[336548057,1724949045011,-5514.22612126,0.00020537,2]
[336548058,1724949045022,-412.34,0.00020538,3]
[336548059,1724949045031,-1051.16,0.00020547,2]
[336548060,1724949045040,-151.0,0.00020547,2]
[336548061,1724949045050,-426.39674934,0.00020547,2]
[336548062,1724949045070,-500.0,0.00020547,2]
[336548063,1724949045080,-500.0,0.00020547,2]
[336548064,1724949045089,-621.59292581,0.00020547,2]
[336548065,1724949045099,-500.0,0.00020547,2]
[336548066,1724949045108,-1119.7,0.00020547,2]
[336548067,1724949045118,-1345.39,0.00020547,2]
[336548068,1724949045128,-500.0,0.00020547,2]
[336548069,1724949045136,-286.23956553,0.00020547,2]
[336548070,1724949045146,-500.0,0.00020547,2]
[336548071,1724949045155,-500.0,0.00020547,2]
[336548072,1724949045165,-2858.87,0.00020547,2]
[336548073,1724949045174,-1737.59,0.00020547,2]
[336548074,1724949045183,-8650.02,0.00020547,2]
[336548075,1724949045193,-1088.59,0.00020547,2]
[336548076,1724949045202,-1088.68,0.00020547,2]
[336548077,1724949045211,-1552.04,0.00020547,2]
[336548078,1724949045221,-4882.3,0.00020547,2]
[336548079,1724949045230,-500.0,0.00020547,2]
[336548080,1724949045240,-500.0,0.00020547,2]
[336548081,1724949045248,-500.0,0.00020547,2]
[336548082,1724949045259,-500.0,0.00020547,2]
[336548083,1724949045268,-500.0,0.00020547,2]
[336548084,1724949045278,-1152.27,0.00020547,2]
[336548085,1724949045287,-733.18,0.00020547,2]
[336548086,1724949045297,-1150.67,0.00020547,2]
[336548087,1724949045310,-1526.53,0.00020547,2]
[336548088,1724949045319,-500.0,0.00020547,2]
[336548089,1724949045328,-1279.98,0.00020547,2]
[336548090,1724949045338,-1929.69,0.00020547,2]
[336548091,1724949045347,-500.0,0.00020547,2]
[336548092,1724949045356,-500.0,0.00020547,2]
[336548093,1724949045366,-806.61,0.00020547,2]
[336548094,1724949045375,-151.0,0.00020547,2]
[336548095,1724949045384,-500.0,0.00020547,2]
[336548096,1724949045393,-500.0,0.00020547,2]
[336548097,1724949045403,-500.0,0.00020547,2]
[336548098,1724949045412,-500.0,0.00020547,2]
[336548099,1724949045423,-500.0,0.00020547,2]
[336548100,1724949045433,-843.2,0.00020547,2]
[336548101,1724949045445,-552.87,0.00020547,2]
[336548102,1724949045455,-500.0,0.00020547,2]
[336548103,1724949045479,-500.0,0.00020547,2]
[336548104,1724949045490,-2864.39,0.00020547,2]
[336548105,1724949045500,-1113.26687903,0.00020547,2]
[336548111,1724949045671,-500.0,0.00019178,2]
[336548112,1724949045683,-500.0,0.00019178,2]
[336548115,1724949045693,-500.0,0.00019452,2]
[336548117,1724949045703,-798.95741061,0.0001947,2]
[336548118,1724949045716,-798.95741061,0.000196,2]
[336548120,1724949045727,-500.0,0.00019726,2]
[336548122,1724949045736,-187.74,0.0002,2]
[336548124,1724949045752,-2704.76928713,0.00020547,2]
[336548981,1724950045109,-300.0,0.00017556,2]
[336548982,1724950045131,-1519.35739235,0.00017557,2]
[336548983,1724950049118,-4823.16464206,0.00017557,2]
[336548984,1724950113862,292.759259,0.00014247,2]
[336549004,1724950231743,-300.0,0.00017556,2]
[336549005,1724950231753,-300.0,0.00017556,2]
[336549006,1724950231764,-3587.00968297,0.00017557,2]
[336549021,1724950237897,-14970.46828262,0.00017557,2]
[336549022,1724950237907,-1147.613789,0.00017629,2]
[336549023,1724950237916,-1125.8177556,0.00017657,2]
[336549024,1724950237926,-629.553144,0.00017659,2]
[336549025,1724950237936,-161.764705,0.00017731,2]
[336549026,1724950237945,-161.764705,0.00017789,2]
[336549027,1724950237955,-161.764705,0.00017846,2]
[336549028,1724950237964,-161.764705,0.00017904,2]
[336549029,1724950237974,-13796.35943669,0.00017915,2]
[336549030,1724950237984,-1731.87997542,0.0001796,2]
[336549031,1724950237993,-161.764705,0.00017962,2]
[336549032,1724950238003,-161.764705,0.0001802,2]
[336549033,1724950238013,-161.764705,0.00018077,2]
[336549034,1724950238022,-161.764705,0.00018135,2]
[336549035,1724950238033,-161.764705,0.00018193,2]
[336549036,1724950238045,-161.764705,0.00018251,2]
[336549037,1724950238054,-161.764705,0.00018308,2]
[336549038,1724950238063,-161.764705,0.00018366,2]
[336549039,1724950238073,-161.764705,0.00018424,2]
[336549040,1724950238083,-161.764705,0.00018482,2]
[336549041,1724950238092,-161.764705,0.00018539,2]
[336549042,1724950238102,-161.764705,0.00018597,2]
[336549043,1724950238111,-161.764705,0.00018655,2]
[336549044,1724950238122,-600.0,0.00018868,2]
[336549045,1724950238132,-158.628812,0.00018904,2]
[336549046,1724950238142,-306.9495332,0.00018904,2]
[336549047,1724950238153,-154.521686,0.00018912,2]
[336549048,1724950238162,-154.521686,0.00018912,2]
[336549049,1724950238172,-600.0,0.00019061,2]
[336549050,1724950238182,-600.0,0.00019061,2]
[336549051,1724950238192,-3195.82964244,0.00019078,2]
[336549052,1724950238202,-263.72,0.00019158,3]
[336549053,1724950238211,-791.21,0.00019158,3]
[336549054,1724950238220,-13670.5165909,0.00019158,2]
[336549055,1724950238230,-500.0,0.00019167,2]
[336549056,1724950238239,-353.5368695,0.00019167,2]
[336549057,1724950238249,-187.12113226,0.00019167,2]
[336549058,1724950238258,-500.0,0.00019167,2]
[336549059,1724950238268,-500.0,0.00019167,2]
[336549060,1724950238277,-500.0,0.00019167,2]
[336549061,1724950238287,-500.0,0.00019167,2]
[336549062,1724950238296,-500.0,0.00019167,2]
[336549063,1724950238306,-500.0,0.00019167,2]
[336549064,1724950238315,-500.0,0.00019167,2]
[336549065,1724950238324,-206.63872899,0.00019167,2]
[336549066,1724950238334,-500.0,0.00019167,2]
[336549067,1724950238343,-68352.5829546,0.00019168,2]
[336549068,1724950238353,-500.0,0.00019178,2]
[336549069,1724950238362,-500.0,0.00019178,2]
[336549070,1724950238372,-500.0,0.00019178,2]
[336549071,1724950238381,-500.0,0.00019178,2]
[336549072,1724950238391,-500.0,0.00019178,2]
[336549073,1724950238400,-500.0,0.00019178,2]
[336549074,1724950238409,-500.0,0.00019178,2]
[336549075,1724950238418,-501.30120937,0.00019178,2]
[336549076,1724950238428,-500.0,0.00019178,2]
[336549077,1724950238437,-500.0,0.00019178,2]
[336549078,1724950238451,-500.0,0.00019178,2]
[336549079,1724950238460,-226.68280265,0.00019178,2]
[336549080,1724950238469,-515.5404769,0.00019178,2]
[336549081,1724950238479,-209.81980082,0.00019178,2]
[336549082,1724950238489,-500.0,0.00019178,2]
[336549083,1724950238501,-500.0,0.00019178,2]
[336549084,1724950238512,-500.0,0.00019178,2]
[336549085,1724950238522,-500.0,0.00019178,2]
[336549086,1724950238532,-500.0,0.00019178,2]
[336549087,1724950238542,-500.0,0.00019178,2]
[336549088,1724950238553,-500.0,0.00019178,2]
[336549089,1724950238563,-500.0,0.00019178,2]
[336549090,1724950238572,-504.6,0.00019178,2]
[336549091,1724950238582,-553.05,0.00019178,2]
[336549092,1724950238593,-500.0,0.00019178,2]
[336549093,1724950238603,-203.88988207,0.00019178,2]
[336549094,1724950238612,-500.0,0.00019178,2]
[336549095,1724950238622,-295.8331768,0.00019178,2]
[336549096,1724950238632,-500.0,0.00019178,2]
[336549097,1724950238641,-500.0,0.00019178,2]
[336549098,1724950238651,-500.0,0.00019178,2]
[336549099,1724950238660,-500.0,0.00019178,2]
[336549100,1724950238670,-500.0,0.00019178,2]
[336549101,1724950238680,-500.0,0.00019178,2]
[336549102,1724950238690,-500.39071977,0.00019178,2]
[336549103,1724950238700,-500.0,0.00019178,2]
[336549104,1724950238709,-500.0,0.00019178,2]
[336549105,1724950238719,-500.0,0.00019178,2]
[336549106,1724950238727,-500.0,0.00019178,2]
[336549107,1724950238737,-500.0,0.00019178,2]
[336549108,1724950238747,-500.89974539,0.00019178,2]
[336549109,1724950238757,-500.0,0.00019178,2]
[336549110,1724950238766,-500.0,0.00019178,2]
[336549111,1724950238775,-500.52118151,0.00019178,2]
[336549112,1724950238785,-500.0,0.00019178,2]
[336549113,1724950238794,-500.44153153,0.00019178,2]
[336549114,1724950238804,-500.0,0.00019178,2]